[Event "WWRR B-Group 2024"]
[Site "Wachtebeke"]
[Date "2024.02.12"]
[Round "3.5"]
[White "Raptis, Filippos"]
[Black "Dreelinck, Jacob"]
[Result "1/2-1/2"]
[ECO "B51"]
[WhiteElo "2174"]
[BlackElo "2196"]
[Annotator "TA"]
[PlyCount "88"]
[EventDate "2024.02.12"]
[EventType "tourn"]
[EventCountry "BEL"]
[SourceTitle "playchess.com"]
[Source "ChessBase"]
[SourceQuality "1"]
[TimeControl "40/5400+30:900+30"]

{[%evp 12,88,21,19,12,16,30,12,42,40,37,37,51,26,18,28,38,31,44,12,6,0,0,0,0,-25,-28,-57,0,-70,0,-94,-26,-147,-139,-125,-134,-134,-113,-110,-115,-102,0,0,0,0,0,0,0,0,0,0,10,0,35,-91,-61,-72,-55,-33,0,0,65,0,0,0,0,0,0,-51,-71,-92,0,0,0,0,0,0,0]} 1. e4 {[%emt 0:00:03]} c5 {[%emt 0:01:03]} 2. Nf3 {[%emt 0:00:09]} d6 {[%emt 0:00:04]} 3. Bb5+ {[%emt 0:00:50]} Nd7 {[%emt 0:00:04]} 4. c3 {[%emt 0:00:06]} a6 {[%emt 0:00:13]} 5. Ba4 {[%emt 0:00:06]} Ngf6 {[%emt 0:00:12]} 6. Qe2 {[%emt 0:00:07]} b5 {[%emt 0:00:45]} 7. Bc2 {[%emt 0:00:06]} Bb7 {[%emt 0:01:12]} 8. O-O {[%emt 0:00:12]} c4 {[%emt 0:01:01]} 9. b3 {[%emt 0:01:35]} cxb3 {[%emt 0:00:22]} 10. axb3 {[%emt 0:00:08]} g6 {[%emt 0:01:17]} 11. d4 {[%emt 0:03:03]} Bg7 {[%emt 0:00:16]} 12. Rd1 {[%emt 0:02:39] Strongly threatening e5.} O-O {[%emt 0:01:15]} 13. Nbd2 {[%emt 0:02:09]} Rc8 {[%emt 0:09:13]} 14. Bb2 {[%emt 0:02:33]} Qc7 {[%emt 0:07:38]} 15. Nf1 {[%emt 0:05:39]} e5 {[%emt 0:04:05]} 16. d5 {[%emt 0:09:37]} b4 $1 {[%emt 0:03:02]} 17. c4 {[%emt 0:01:37]} Nc5 {[%emt 0:00:42]} 18. Ne1 {[%emt 0:04:21]} a5 {[%emt 0:01:34][%cal Of6e4]} 19. f3 {[%emt 0:03:32]} Bh6 {[%emt 0:01:15]} (19... Ba6 $15) 20. Nd3 {[%emt 0:05:32]} (20. Bc1 $11 Bxc1 21. Rdxc1) 20... Nfd7 {[%emt 0:00:31]} (20... a4 $15 21. bxa4 b3) 21. Kh1 {[%emt 0:09:19] [#]} (21. Bc1 $11 {keeps the balance.} Bxc1 22. Nxc1) 21... Ra8 {[%emt 0:01:48]} ({Better is} 21... Nxd3 $1 $17 22. Bxd3 Nc5) 22. Ne3 {[%emt 0:02:48]} (22. Bc1 $11 {remains equal.} Bxc1 23. Nxc1) 22... Nxd3 $17 {[%emt 0:00:35]} 23. Bxd3 {[%emt 0:01:29]} Nc5 {[%emt 0:00:02]} 24. Ng4 {[%emt 0:05:23]} Bg7 {[%emt 0:00:05][%cal Oh7h5] aiming for ...h5!} 25. Bc2 {[%emt 0:00:51]} h5 {[%emt 0:01:30]} 26. Nf2 {[%emt 0:00:07] [#]} Bh6 {[%emt 0:04:28]} (26... a4 $1 $17 {[%cal Ra4b3]} 27. bxa4 b3) 27. Nd3 $11 {[%emt 0:00:28]} Nxd3 {[%emt 0:01:51]} 28. Bxd3 {[%emt 0:03:26]} Qc5 {[%emt 0:00:46]} 29. g3 {[%emt 0:00:53]} Bc8 {[%emt 0:01:12]} 30. Kg2 {[%emt 0:02:04]} Bd7 {[%emt 0:00:06]} 31. Rf1 {[%emt 0:04:53]} Qc8 {[%emt 0:04:20]} 32. Rf2 {[%emt 0:01:52]} h4 {[%emt 0:02:27]} 33. Bc1 {[%emt 0:03:41]} (33. f4 $14) 33... Bxc1 $17 {[%emt 0:00:55]} 34. Rxc1 {[%emt 0:00:16]} hxg3 {[%emt 0:01:58]} 35. hxg3 {[%emt 0:03:08]} Qc5 {[%emt 0:04:40]} 36. f4 {[%emt 0:07:47]} f6 {[%emt 0:03:11]} (36... exf4 $1 $11 37. Qf3 Qd4) 37. fxe5 {[%emt 0:07:59]} (37. Rh1 $1 $14 Kg7 (37... a4 $2 38. f5 $18) 38. Qd2) 37... fxe5 $11 {[%emt 0:00:25][%cal Od7h3] And now ...Bh3+! would win.} 38. Rcf1 {[%emt 0:00:09]} Kg7 {[%emt 0:04:38]} 39. Qd2 {[%emt 0:02:07]} Rxf2+ {[%emt 0:13:15]} 40. Rxf2 {[%emt 0:00:02]} (40. Qxf2 $11 Qxf2+ 41. Rxf2) 40... Rh8 $15 {[%emt 0:01:23] Threatens to win with ...Bh3+.} 41. Bf1 {[%emt 0:22:17]} Bg4 {[%emt 0:19:03]} (41... Qa7 $17 {...a4 is the strong threat.} 42. Qe2 Bh3+ 43. Kg1 Bxf1 44. Kxf1 a4) 42. Qg5 $11 {[%emt 0:00:47] Dancing on a razor blade. The position is equal.} Rh2+ $1 {[%emt 0:19:21]} 43. Kxh2 {[%emt 0:00:02] Intending Qe7+ and mate.} Qxf2+ {[%emt 0:00:05]} 44. Bg2 {[%emt 0:00:05]} Bf3 {[%emt 0:01:02] Weighted Error Value: White=0.26 (precise) /Black=0.19 (very precise) .  Mistake:       	White=6     	Black=6      Inaccurate:     	White=2     	Black=3      OK:         	White=8     	Black=12     Best:        	White=4     	Black=3      Strong:       	---       	Black=2} 1/2-1/2

[Event "WWRR B-Group 2024"]
[Site "Wachtebeke"]
[Date "2024.02.12"]
[Round "4.1"]
[White "Toulzac, Pierre-Yves"]
[Black "Dreelinck, Jacob"]
[Result "0-1"]
[ECO "B30"]
[WhiteElo "2046"]
[BlackElo "2196"]
[Annotator "TA"]
[PlyCount "44"]
[EventDate "2024.02.12"]
[EventType "tourn"]
[EventCountry "BEL"]
[SourceTitle "playchess.com"]
[Source "ChessBase"]
[SourceQuality "1"]
[TimeControl "40/5400+30:900+30"]

{[%evp 9,44,25,25,0,26,16,25,14,36,-23,-18,-62,-53,-64,-53,-42,-10,-102,-93,-102,-100,-103,-100,-257,-222,-375,-372,-522,-503,-511,-489,-700,-922,-748,-472,-29988,-29989]} 1. e4 {[%emt 0:00:58]} c5 {[%emt 0:00:04]} 2. Nf3 {[%emt 0:00:08]} Nc6 {[%emt 0:00:11]} 3. d3 {[%emt 0:03:58]} f5 {[%emt 0:04:20]} 4. g3 {[%emt 0:12:45]} d6 {[%emt 0:02:58]} 5. Bg2 {[%emt 0:00:55]} Nf6 {[%emt 0:00:06]} 6. O-O {[%emt 0:07:20]} e5 {[%emt 0:00:14]} 7. c3 {[%emt 0:01:34]} Be7 {[%emt 0:04:03]} 8. Nbd2 {[%emt 0:08:25] White has an edge.} O-O {[%emt 0:11:38]} 9. Qb3+ {[%emt 0:05:18]} (9. Nc4 $14) 9... Kh8 $11 {[%emt 0:00:37]} 10. Re1 {[%emt 0:18:20]} f4 {[%emt 0:08:33]} 11. gxf4 {[%emt 0:08:11]} Nh5 {[%emt 0:02:14]} 12. f5 {[%emt 0:04:55]} Nf4 $36 {[%emt 0:04:44][%cal Og7g6][%mdl 2048] White must now prevent ...g6! Black fights for an advantage.} 13. Bf1 {[%emt 0:00:01]} (13. Nc4 $1 $11 {keeps the balance.}) 13... g6 $17 {[%emt 0:00:14]} 14. Nc4 {[%emt 0:00:08]} gxf5 {[%emt 0:03:17]} 15. Bxf4 {[%emt 0:01:07][%cal Rf3e5] [#] Hoping for Nfxe5!} fxe4 $1 {[%emt 0:07:05]} 16. Ncxe5 $2 {[%emt 0:01:43] This move loses the game for White.} Rxf4 {[%emt 0:04:18]} 17. Rxe4 {[%emt 0:00:42]} (17. Nf7+ Rxf7 18. Qxf7 exf3 19. Qxf3) 17... dxe5 $19 {[%emt 0:02:10]} 18. Nxe5 {[%emt 0:01:36]} (18. Rxf4 {was worth a try.} exf4 19. c4) 18... Qf8 {[%emt 0:08:26]} 19. Nxc6 {[%emt 0:08:59]} bxc6 {[%emt 0:01:37]} 20. Qa4 {[%emt 0:00:21]} (20. Qc4 $142 Qg7+ (20... Rxf2 $2 21. Rxe7 Rxf1+ 22. Rxf1 $19) 21. Kh1 Rxf2 22. Re2 Rxe2 23. Bxe2) 20... Qg7+ {[%emt 0:01:47]} 21. Kh1 {[%emt 0:00:25]} Rxf2 {[%emt 0:04:32] ( -> ...Bf5)} 22. Qxc6 {[%emt 0:00:37] [#]} (22. Re2 $19 Rf6 23. Bg2) 22... Bb7 $1 {[%emt 0:00:31][%mdl 512] Weighted Error Value: White=0.83/Black=0.31.  Mistake:       	White=6     	---        Inaccurate:     	White=1     	Black=2      OK:         	White=3     	Black=4      Best:        	White=3     	Black=6      Strong:       	---       	Black=1} 0-1

[Event "WWRR B-Group 2024"]
[Site "Wachtebeke"]
[Date "2024.02.12"]
[Round "4.2"]
[White "Kurt, Sascha"]
[Black "Raptis, Filippos"]
[Result "1/2-1/2"]
[ECO "B32"]
[WhiteElo "2002"]
[BlackElo "2174"]
[Annotator "TA"]
[PlyCount "88"]
[EventDate "2024.02.12"]
[EventType "tourn"]
[EventCountry "BEL"]
[SourceTitle "playchess.com"]
[Source "ChessBase"]
[SourceQuality "1"]
[TimeControl "40/5400+30:900+30"]

{[%evp 10,88,33,25,31,26,22,25,31,33,60,55,56,61,64,59,54,60,44,57,47,58,71,68,81,87,79,43,50,41,36,17,174,166,219,131,124,130,131,131,131,128,134,138,137,134,132,132,130,126,129,120,137,146,149,137,119,97,98,54,103,0,7,0,0,0,0,0,0,0,0,0,0,0,0,0,0,0,0,0,0]} 1. e4 {[%emt 0:00:13]} c5 {[%emt 0:00:08]} 2. Nf3 {[%emt 0:00:04][%cal Bg1f3,Bf3d4,Bd4b5,Bb5a3,Ba3c2][%mdl 32]} Nc6 {[%emt 0:00:03]} 3. d4 {[%emt 0:00:04]} cxd4 {[%emt 0:00:05]} 4. Nxd4 {[%emt 0:00:04]} e5 {[%emt 0:00:05]} 5. Nb5 {[%emt 0:00:04]} d6 {[%emt 0:00:04]} 6. c4 {[%emt 0:00:07]} g6 {[%emt 0:00:29]} 7. N1c3 {[%emt 0:00:08] Black must now prevent Nd5.} a6 {[%emt 0:00:07]} 8. Na3 {[%emt 0:00:03]} Bg7 {[%emt 0:00:09] White has an edge.} 9. Nc2 {[%emt 0:00:07]} Nge7 {[%emt 0:08:38]} 10. Be3 {[%emt 0:00:33]} O-O {[%emt 0:00:21]} 11. Qd2 {[%emt 0:00:07]} f5 {[%emt 0:00:17] And now ...f4 would win.} 12. f3 {[%emt 0:00:06] White is more active.} fxe4 {[%emt 0:00:10]} 13. fxe4 {[%emt 0:00:07]} Nd4 {[%emt 0:12:30]} 14. Nxd4 {[%emt 0:01:38]} exd4 {[%emt 0:00:15]} 15. Bxd4 {[%emt 0:00:07]} Nc6 {[%emt 0:00:10]} 16. Bxg7 {[%emt 0:00:23]} Kxg7 {[%emt 0:00:02]} 17. O-O-O {[%emt 0:00:25][%cal Of1e2]} Bg4 {[%emt 0:00:03]} 18. Re1 {[%emt 0:02:26]} Ne5 {[%emt 0:00:55]} 19. b3 {[%emt 0:16:17]} Rc8 {[%emt 0:04:42]} 20. Kb1 {[%emt 0:13:32]} b5 $2 {[%emt 0:29:00]} 21. cxb5 $18 {[%emt 0:13:28]} Qa5 {[%emt 0:00:07] [#]} (21... axb5 {might work better.} 22. Nxb5 (22. Bxb5 Qb6 $16) 22... Rb8) 22. Rc1 {[%emt 0:01:26]} (22. Re3 $1 $18) 22... axb5 $16 {[%emt 0:00:21]} 23. Bxb5 {[%emt 0:20:36]} Rxc3 {[%emt 0:01:05]} 24. Rxc3 {[%emt 0:01:23]} (24. Qxc3 Qxb5 25. g3 Qe2 $17) 24... Qxb5 {[%emt 0:00:09] [#]} 25. h3 $1 {[%emt 0:01:01]} Qe2 {[%emt 0:27:56]} 26. Rc7+ {[%emt 0:09:12]} Rf7 {[%emt 0:01:17]} 27. Rxf7+ {[%emt 0:01:03]} Kxf7 {[%emt 0:00:08]} 28. Qxe2 {[%emt 0:05:54]} ({And not} 28. Qf4+ Ke6 29. Rf1 (29. hxg4 $2 {loses.} Nd3 $19) 29... Qd3+ 30. Kb2 Qd4+ 31. Kb1 Bd1 $17) 28... Bxe2 {[%emt 0:00:05]} 29. Re1 {[%emt 0:00:10]} Ba6 {[%emt 0:02:24]} 30. Kc2 {[%emt 0:00:42]} Ke6 {[%emt 0:02:26]} 31. Kc3 {[%emt 0:02:00]} Nd3 {[%emt 0:01:30]} 32. Re3 {[%emt 0:00:45]} Nf4 {[%emt 0:00:52]} 33. g4 {[%emt 0:02:28]} Ke5 {[%emt 0:01:11]} 34. Kd2 {[%emt 0:02:29]} Bb7 {[%emt 0:03:28]} (34... Ne6 $14 {deserves consideration.}) 35. b4 {[%emt 0:01:22]} ({Better is} 35. Rc3 $16) 35... Bxe4 $11 {[%emt 0:01:12] The position is equal.} 36. b5 {[%emt 0:00:26]} Nd5 {[%emt 0:03:30]} 37. Rb3 {[%emt 0:01:37]} Nb6 {[%emt 0:00:23] aiming for ...d5.} 38. Rb4 {[%emt 0:00:34]} Nd5 {[%emt 0:01:30]} 39. Ra4 {[%emt 0:00:49] Threatens to win with Ra6.} Nb6 $1 {[%emt 0:01:11]} 40. Ra7 {[%emt 0:00:42][%cal Oa2a4] a4! would now be deadly.} d5 $1 {[%emt 0:00:53][%cal Bd6d5,Bd5d4,Bd4d3,Bd3d2][%mdl 32]} 41. a4 {[%emt 0:18:10][%cal Oa4a5] a5! is the strong threat.} d4 {[%emt 0:15:21]} 42. Rxh7 {[%emt 0:00:00]} Nc4+ {[%emt 0:00:00]} 43. Ke1 {[%emt 0:00:00][%cal Ob5b6]} d3 {[%emt 0:00:00] ( -> ...d2+)} 44. Rd7 {[%emt 0:00:00]} d2+ {[%emt 0:01:38] Black escapes into a draw.   Weighted Error Value: White=0.12 (very precise) /Black=0.12 (very precise) .  Mistake:       	White=2     	Black=3      Inaccurate:     	White=2     	Black=1      OK:         	White=13    	Black=13     Best:        	White=3     	Black=5      Strong:       	White=1     	Black=2} 1/2-1/2

[Event "WWRR B-Group 2024"]
[Site "Wachtebeke"]
[Date "2024.02.12"]
[Round "4.3"]
[White "Dreelinck, Adriaan"]
[Black "Vandenhole, Kobe"]
[Result "1/2-1/2"]
[ECO "D31"]
[WhiteElo "2205"]
[BlackElo "2081"]
[Annotator "TA"]
[PlyCount "59"]
[EventDate "2024.02.12"]
[EventType "tourn"]
[EventCountry "BEL"]
[SourceTitle "playchess.com"]
[Source "ChessBase"]
[SourceQuality "1"]
[TimeControl "40/5400+30:900+30"]

{[%evp 9,59,22,17,21,15,16,26,10,26,28,27,29,29,26,23,18,21,30,14,13,29,0,0,4,23,10,24,-7,-6,-33,-27,-19,-22,-59,-31,-32,35,0,-18,-94,-8,-8,-4,-13,-12,-9,0,0,0,0,0,0]} 1. d4 {[%emt 0:00:06]} d5 {[%emt 0:00:08]} 2. c4 {[%emt 0:00:06]} e6 {[%emt 0:00:04]} 3. Nc3 {[%emt 0:00:40]} a6 {[%emt 0:00:05]} 4. cxd5 {[%emt 0:00:06]} exd5 {[%emt 0:00:06]} 5. Bf4 {[%emt 0:00:07]} Nf6 {[%emt 0:00:21]} 6. e3 {[%emt 0:00:11]} Bd6 {[%emt 0:00:08]} 7. Bg5 {[%emt 0:00:44]} Be6 {[%emt 0:00:26]} 8. Bd3 {[%emt 0:00:39] White has an edge.} Nbd7 {[%emt 0:00:50]} 9. Nge2 {[%emt 0:01:42]} h6 {[%emt 0:00:21]} 10. Bh4 {[%emt 0:03:01]} Qe7 {[%emt 0:00:08]} 11. h3 {[%emt 0:03:00]} O-O-O {[%emt 0:01:13]} 12. Qc2 {[%emt 0:06:33]} g5 {[%emt 0:01:28]} 13. Bg3 {[%emt 0:00:41]} Bxg3 {[%emt 0:00:18]} 14. Nxg3 {[%emt 0:00:16]} Kb8 {[%emt 0:02:25]} 15. O-O-O {[%emt 0:04:42]} Nb6 {[%emt 0:06:32]} 16. Kb1 {[%emt 0:03:10]} Rhe8 {[%emt 0:03:08]} 17. Ka1 {[%emt 0:11:41]} h5 {[%emt 0:07:52]} 18. Rc1 {[%emt 0:02:52]} h4 {[%emt 0:01:37]} 19. Nge2 {[%emt 0:02:43]} Bd7 {[%emt 0:03:13]} 20. Ng1 {[%emt 0:08:31]} Ne4 {[%emt 0:04:58]} 21. Nxe4 {[%emt 0:10:40]} dxe4 {[%emt 0:00:06]} ({Reject} 21... Ba4 22. b3 dxe4 23. Bxa6 $11) 22. Bxa6 {[%emt 0:00:26]} Be6 {[%emt 0:19:15]} (22... Rc8 $15 23. Bc4 c5) 23. Bb5 {[%emt 0:09:57]} ({White should play} 23. Bf1 $1 $14) 23... c6 $11 {[%emt 0:00:18]} 24. Ba4 {[%emt 0:02:15] [#]} (24. Bf1 $11 {keeps the balance.}) 24... Qb4 {[%emt 0:02:35]} ({Black should try} 24... Qf6 $1 $17 {Threatens to win with ...Nxa4.} 25. f3 Nxa4 26. Qxa4 Bd5) 25. Bb3 {[%emt 0:00:58] The position is equal.} Bxb3 {[%emt 0:00:40]} 26. Qxb3 {[%emt 0:01:58]} Qxb3 {[%emt 0:00:27]} 27. axb3 {[%emt 0:00:02]} Rd5 {[%emt 0:00:20]} 28. Ne2 {[%emt 0:04:29]} Rf5 {[%emt 0:03:26]} 29. Rhf1 {[%emt 0:01:34]} Nd5 {[%emt 0:00:17]} 30. Kb1 {[%emt 0:11:22] Weighted Error Value: White=0.16 (very precise) /Black=0.12 (very precise) .  Mistake:       	White=2     	Black=2      Inaccurate:     	White=3     	Black=1      OK:         	White=8     	Black=11     Best:        	---       	Black=1} 1/2-1/2

[Event "WWRR B-Group 2024"]
[Site "Wachtebeke"]
[Date "2024.02.12"]
[Round "4.4"]
[White "Ruzhansky, Elias"]
[Black "Schrik, Rachid"]
[Result "1-0"]
[ECO "B32"]
[WhiteElo "2133"]
[BlackElo "2179"]
[Annotator "TA"]
[PlyCount "125"]
[EventDate "2024.02.12"]
[EventType "tourn"]
[EventCountry "BEL"]
[SourceTitle "playchess.com"]
[Source "ChessBase"]
[SourceQuality "1"]
[TimeControl "40/5400+30:900+30"]

{[%evp 24,125,0,16,0,-14,0,-8,-13,-12,-7,-24,47,43,79,39,139,133,216,141,126,66,538,77,163,0,76,16,114,0,173,171,227,229,278,272,322,318,316,314,300,288,274,248,243,241,243,258,246,249,245,221,259,233,281,249,248,237,235,0,264,282,235,296,283,287,279,261,313,310,301,314,472,539,539,483,487,485,497,495,970,954,897,902,790,710,856,648,641,629,29958,29961,5777,5065,29978,29979,29977,29980,29980,29981,29983,29982,29982,29983]} 1. e4 {[%emt 0:00:05]} c5 {[%emt 0:00:16]} 2. Nf3 {[%emt 0:00:05]} Nc6 {[%emt 0:00:26]} 3. d4 {[%emt 0:00:13]} cxd4 {[%emt 0:00:12]} 4. Nxd4 {[%emt 0:00:09]} e5 {[%emt 0:00:18]} 5. Nb5 {[%emt 0:00:09]} d6 {[%emt 0:00:20]} 6. N1c3 {[%emt 0:00:07]} a6 {[%emt 0:01:56]} 7. Na3 {[%emt 0:10:34]} Be6 {[%emt 0:00:58]} 8. Nc4 {[%emt 0:00:04]} Rb8 {[%emt 0:01:45]} 9. Nd5 {[%emt 0:00:48]} Bxd5 {[%emt 0:01:02]} 10. exd5 {[%emt 0:00:05]} Nce7 {[%emt 0:00:35]} 11. a4 {[%emt 0:00:20]} Nf6 {[%emt 0:02:17]} 12. g4 {[%emt 0:00:23]} h6 {[%emt 0:11:33]} 13. h4 {[%emt 0:00:17]} Nexd5 {[%emt 0:07:29]} 14. Rg1 {[%emt 0:19:43]} Nc7 {[%emt 0:32:40]} 15. g5 {[%emt 0:00:58]} hxg5 {[%emt 0:08:31]} 16. hxg5 {[%emt 0:00:12]} Ne4 {[%emt 0:02:43]} (16... Nfd5 $5) 17. Qe2 {[%emt 0:15:54]} Nc5 {[%emt 0:07:22]} (17... d5 $11 18. Nxe5 Bd6) 18. Be3 $14 {[%emt 0:02:54]} N7e6 {[%emt 0:02:54]} 19. Bg2 {[%emt 0:08:27]} Be7 {[%emt 0:03:37]} (19... Rh4 $14) 20. g6 $16 {[%emt 0:02:10]} fxg6 {[%emt 0:09:24]} (20... Kf8 $16) 21. Qg4 {[%emt 0:14:32]} Nf8 {[%emt 0:01:33]} 22. Bxc5 {[%emt 0:04:40]} (22. Bd5 $16 {Strongly threatening Bxc5.} Ncd7 23. Be4 (23. O-O-O Nf6 $16)) 22... Rh4 $2 {[%emt 0:01:09][%mdl 8192] [#]} ({Black should play} 22... dxc5 $14 23. Be4 (23. Nxe5 Bf6 $11) 23... Bf6) 23. Qe2 $2 {[%emt 0:00:06]} (23. Qxh4 $1 $18 Bxh4 24. Nxd6+ Kd7 25. O-O-O Qg5+ 26. Kb1) 23... dxc5 {[%emt 0:00:17]} (23... Qc7 $16 {might work better.}) 24. c3 $2 {[%emt 0:01:22]} ({White should try} 24. Nxe5 $18 {Threatens to win with Kf1.} Qd6 25. Kf1) 24... Bf6 {[%emt 0:01:28]} (24... Ne6 $11 25. Qxe5 (25. Nxe5 Nf4 $15) 25... Nf4) 25. Be4 {[%emt 0:09:33]} (25. Nxe5 Qe7 26. Nd3 Qxe2+ 27. Kxe2 Ne6 $15) (25. Rd1 $1 $16 {[%cal Rd1d8]} Qc7 26. Rh1 Rxh1+ 27. Bxh1) 25... Qc7 {[%emt 0:00:27]} (25... Ne6 $11 {keeps the balance.}) 26. Qc2 {[%emt 0:00:17]} (26. Bxg6+ $2 Nxg6 27. O-O-O Nf4 $19) (26. O-O-O $1 $16) 26... Rxe4+ $2 {[%emt 0:01:23]} (26... Rd8 $11 {and Black has nothing to worry.}) 27. Qxe4 $18 {[%emt 0:00:07]} Rd8 {[%emt 0:00:10]} (27... b5 {was called for.}) 28. Rd1 {[%emt 0:02:06]} Rxd1+ {[%emt 0:00:41]} 29. Kxd1 {[%emt 0:00:06]} Qc6 {[%emt 0:00:19]} 30. Qxc6+ {[%emt 0:00:17]} bxc6 {[%emt 0:00:01]} 31. Ke2 {[%emt 0:01:30]} Ne6 {[%emt 0:00:17]} 32. Kf3 {[%emt 0:00:43]} (32. Rxg6 $2 Nf4+ 33. Ke3 Nxg6 $19) 32... Ng5+ {[%emt 0:01:47]} 33. Kg4 {[%emt 0:02:01]} Nf7 {[%emt 0:00:19]} 34. Rd1 {[%emt 0:01:04]} Ke7 {[%emt 0:00:05]} 35. Na5 {[%emt 0:00:24]} Nd8 {[%emt 0:00:44]} 36. Kf3 {[%emt 0:00:51]} Ke6 {[%emt 0:00:32]} 37. Ke4 {[%emt 0:00:12]} g5 {[%emt 0:00:30]} 38. f3 {[%emt 0:01:19]} Be7 {[%emt 0:00:39]} 39. b3 {[%emt 0:03:36]} Bf6 {[%emt 0:00:15]} 40. Rd3 {[%emt 0:00:57]} Be7 {[%emt 0:00:52]} 41. Rd1 {[%emt 0:16:06]} Bf6 $1 {[%emt 0:05:22]} 42. b4 {[%emt 0:00:00]} cxb4 {[%emt 0:04:09]} 43. cxb4 {[%emt 0:00:00]} Be7 {[%emt 0:01:15]} 44. Rc1 {[%emt 0:00:00]} (44. Nc4 Nf7 45. Rb1 g4 $16) 44... Kd7 {[%emt 0:02:17]} 45. Rc4 {[%emt 0:00:00]} (45. Kxe5 $6 Bxb4 46. Nb3 Ne6 47. Rd1+ Ke7 $16) 45... Bd6 {[%emt 0:02:59]} 46. Kf5 {[%emt 0:00:00]} Bc7 {[%emt 0:00:35]} 47. Nb3 {[%emt 0:00:00]} ({Don't take} 47. Kxg5 Kd6 48. Kf5 Bxa5 49. bxa5 Kd5 $18) 47... Ne6 {[%emt 0:00:44]} (47... Kd6 $142 48. Nc5 (48. Kxg5 Ne6+ 49. Kg6 Kd5 $16) 48... a5 49. Ne4+ (49. Kxg5 Kd5 $11) 49... Kd7 50. bxa5 (50. Nxg5 axb4 51. Rxb4 c5 $18) 50... Bxa5 51. Nxg5 Nb7) 48. Nc5+ $18 {[%emt 0:00:00]} Nxc5 {[%emt 0:00:07]} 49. Rxc5 {[%emt 0:03:01]} Bd6 {[%emt 0:00:40]} 50. Rc4 {[%emt 0:00:24]} Bc7 {[%emt 0:00:08]} 51. Kxg5 {[%emt 0:00:24]} a5 {[%emt 0:00:10]} (51... Kd6 $142 52. Kf5 Bd8) 52. bxa5 $18 {[%emt 0:00:11]} Bxa5 {[%emt 0:00:01]} 53. Kf5 {[%emt 0:00:26]} Kd6 {[%emt 0:00:58]} 54. Ke4 {[%emt 0:00:29]} c5 {[%emt 0:00:36]} 55. Kd3 {[%emt 0:00:36]} g5 {[%emt 0:00:14]} 56. Rg4 {[%emt 0:00:10]} Kd5 {[%emt 0:00:15]} 57. Rxg5 {[%emt 0:00:22]} c4+ {[%emt 0:00:06]} 58. Kc2 {[%emt 0:00:24]} Kd4 {[%emt 0:00:43]} 59. f4 {[%emt 0:01:38]} Bc7 {[%emt 0:01:32]} 60. fxe5 {[%emt 0:00:15]} Bxe5 {[%emt 0:00:06]} 61. a5 {[%emt 0:00:13]} Bc7 {[%emt 0:01:17]} 62. a6 {[%emt 0:00:05]} Bb6 {[%emt 0:00:22]} 63. Rg7 {[%emt 0:00:17]} 1-0

[Event "WWRR B-Group 2024"]
[Site "Wachtebeke"]
[Date "2024.02.12"]
[Round "4.5"]
[White "Verduyn, Frederic"]
[Black "Nemegeer, Arne"]
[Result "1/2-1/2"]
[ECO "B13"]
[WhiteElo "2087"]
[BlackElo "2100"]
[Annotator "NA RC"]
[PlyCount "49"]
[EventDate "2024.02.12"]
[EventType "tourn"]
[EventCountry "BEL"]
[SourceTitle "playchess.com"]
[Source "ChessBase"]
[SourceQuality "1"]
[TimeControl "40/5400+30:900+30"]

1. d4 {[%emt 0:00:16]} Nf6 {[%emt 0:00:03]} 2. Nc3 {[%emt 0:00:15]} d5 {[%emt 0:00:04]} 3. Bf4 {[%emt 0:00:21]} c5 {[%emt 0:00:03]} 4. e3 {[%emt 0:00:32]} cxd4 {[%emt 0:00:04]} 5. exd4 {[%emt 0:00:10]} a6 {[%emt 0:00:01]} 6. Nf3 {[%emt 0:00:28]} Nc6 {[%emt 0:00:03]} 7. Ne5 {[%emt 0:00:55]} Bd7 {[%emt 0:00:03]} 8. g4 {[%emt 0:16:21]} h6 {[%emt 0:00:05]} 9. Bg2 {[%emt 0:01:55]} e6 {[%emt 0:00:45]} 10. O-O {[%emt 0:03:41]} Rc8 {[%emt 0:16:33]} 11. Re1 {[%emt 0:04:12]} Bb4 {[%emt 0:11:14]} 12. Re3 {[%emt 0:08:38]} Nxe5 {[%emt 0:04:46]} 13. Bxe5 {[%emt 0:01:26]} Bxc3 {[%emt 0:07:52]} 14. bxc3 {[%emt 0:01:58]} O-O {[%emt 0:00:04]} 15. h4 {[%emt 0:10:16]} Ne8 {[%emt 0:12:58]} 16. g5 {[%emt 0:05:18]} f6 {[%emt 0:04:07]} 17. gxf6 {[%emt 0:01:26]} Nxf6 {[%emt 0:01:02]} 18. Rg3 {[%emt 0:01:22]} Qe7 {[%emt 0:04:48]} 19. Rb1 {[%emt 0:03:50]} Bb5 {[%emt 0:01:59]} 20. Qd2 {[%emt 0:06:29]} Kh7 {[%emt 0:03:24]} 21. Re1 {[%emt 0:05:42]} Rf7 {[%emt 0:04:16]} 22. f4 {[%emt 0:03:07]} Rcf8 {[%emt 0:05:58]} 23. Bf3 {[%emt 0:03:04]} Nd7 {[%emt 0:05:04]} 24. Bc7 {[%emt 0:05:11]} Nf6 {[%emt 0:01:17]} 25. Be5 {[%emt 0:00:14]} 1/2-1/2